Workbook

Sheet Data Table
A1: Fitness Progress Chart for Men
A3: Height (feet) | B3: 6
A4: Height (inches) | B4: 1.5
A6: Date | B6: Weight (pounds) | C6: Chest (inches) | D6: Waist (inches) | E6: Hips (inches) | F6: Estimated Lean Body Weight | G6: Estimated Body Fat Weight | H6: Estimated Body Fat Percentage | I6: Estimated Body Mass Index (BMI)
A7: 2007-01-01 | B7: 200.0 | C7: 42.0 | D7: 36.0 | E7: 34.0 | F7: =((B7*1.082)+ 94.42)-(D7*4.15) -> 161.4 | G7: =B7-F7 -> 38.6 | H7: =IF(ISERROR((G7*100)/B7),"",(G7*100)/B7) -> 19.3 | I7: =(B7/($B$3*12+$B$4)/($B$3*12+$B$4)*703) -> 26.03
A8: 2007-01-08 | B8: 200.0 | C8: 42.0 | D8: 36.0 | E8: 34.0 | F8: =((B8*1.082)+ 94.42)-(D8*4.15) -> 161.4 | G8: =B8-F8 -> 38.6 | H8: =IF(ISERROR((G8*100)/B8),"",(G8*100)/B8) -> 19.3 | I8: =(B8/($B$3*12+$B$4)/($B$3*12+$B$4)*703) -> 26.03
A9: 2007-01-15 | B9: 199.0 | C9: 42.0 | D9: 35.5 | E9: 33.6 | F9: =((B9*1.082)+ 94.42)-(D9*4.15) -> 162.4 | G9: =B9-F9 -> 36.6 | H9: =IF(ISERROR((G9*100)/B9),"",(G9*100)/B9) -> 18.4 | I9: =(B9/($B$3*12+$B$4)/($B$3*12+$B$4)*703) -> 25.90
A10: 2007-01-22 | B10: 199.0 | C10: 42.0 | D10: 35.0 | E10: 33.0 | F10: =((B10*1.082)+ 94.42)-(D10*4.15) -> 164.5 | G10: =B10-F10 -> 34.5 | H10: =IF(ISERROR((G10*100)/B10),"",(G10*100)/B10) -> 17.3 | I10: =(B10/($B$3*12+$B$4)/($B$3*12+$B$4)*703) -> 25.90
A11: 2007-01-29 | B11: 198.0 | C11: 42.5 | D11: 35.0 | E11: 33.0 | F11: =((B11*1.082)+ 94.42)-(D11*4.15) -> 163.4 | G11: =B11-F11 -> 34.6 | H11: =IF(ISERROR((G11*100)/B11),"",(G11*100)/B11) -> 17.5 | I11: =(B11/($B$3*12+$B$4)/($B$3*12+$B$4)*703) -> 25.77
